bitfinex-derivatives/quotes_SOLF0:USTF0_20250907
["timestamp","ask_amount","ask_price","bid_price","bid_amount"]
[1757269895407,7.8,202.2,202.19,1.97342798]
[1757269897209,13.30911735,202.2,202.19,1.97342798]
[1757269900413,7.8,202.2,202.19,1.97342798]
[1757269900611,13.32307943,202.2,202.19,1.97342798]
[1757269901214,7.8,202.2,202.19,1.97342798]
[1757269909417,16.08602648,202.2,202.17,1.97342798]
[1757269909816,16.08602648,202.2,202.14,7.95]
[1757269910012,15.72602648,202.16,202.13,1.97342798]
[1757269910319,15.72602648,202.15,202.13,1.97342798]
[1757269910514,7.44,202.14,202.13,1.97342798]
[1757269912825,7.44,202.14,202.12,7.95]
[1757269913725,7.44,202.14,202.11,1.97342798]
[1757269913927,5.52882044,202.12,202.11,9.92342798]
[1757269915932,5.52882044,202.13,202.11,9.92342798]
[1757269916127,5.52882044,202.13,202.12,7.95]
[1757269922338,12.96882044,202.14,202.12,7.95]
[1757269925236,5.52882044,202.14,202.12,7.95]
[1757269925436,7.82,202.13,202.12,7.95]
[1757269929238,13.34882044,202.14,202.12,7.95]
[1757269931640,5.52882044,202.14,202.12,7.95]
[1757269931841,13.34882044,202.14,202.12,7.95]
[1757269932140,7.82,202.13,202.12,7.95]
[1757269932441,5.52882044,202.14,202.12,7.95]
[1757269933944,13.34882044,202.14,202.12,7.95]
[1757269934245,7.82,202.13,202.12,7.95]
[1757269935745,7.82,202.13,202.12,1.97342798]
[1757269936045,13.34882044,202.13,202.12,1.97342798]
[1757269938246,5.52882044,202.13,202.12,10.20342798]
[1757269939435,7.82,202.14,202.09,8.23]
[1757269939640,13.34484096,202.12,202.11,1.97342798]
[1757269939842,13.34484096,202.12,202.11,10.20342798]
[1757269940946,5.52484096,202.12,202.11,10.20342798]
[1757269941952,13.34484096,202.12,202.11,1.97342798]
[1757269942545,7.82,202.11,202.08,8.23]
[1757269942750,7.82,202.1,202.08,8.23]
[1757269944152,13.34484096,202.1,202.08,8.23]
[1757269946051,7.82,202.1,202.08,8.23]
[1757269949461,5.52484096,202.11,202.07,1.97342798]
[1757269949653,5.52484096,202.09,202.06,1.97342798]
[1757269950360,7.82,202.07,202.06,1.97342798]
[1757269952053,7.82,202.07,202.03,1.97342798]
[1757269952260,7.82,202.06,202.03,10.20342798]
[1757269952953,5.52484096,202.07,202.03,10.20342798]
[1757269953158,7.82,202.05,202.03,10.20342798]
[1757269954159,5.52484096,202.06,202.03,1.97342798]
[1757269954456,10.25945446,202.09,202.01,10.20342798]
[1757269954457,7.82,202.04,202.01,10.20342798]
[1757269955853,5.52484096,202.05,202.01,10.20342798]
[1757269956057,7.96,202.04,202.01,10.20342798]
[1757269956459,7.96,202.04,202.01,8.23]
[1757269956662,5.52484096,202.06,201.99,183.68720388]
[1757269956860,7.96,202.04,201.99,183.68720388]
[1757269957153,5.52484096,202.05,201.99,183.68720388]
[1757269957354,7.96,202.05,201.99,191.44720388]
[1757269957560,5.52484096,202.05,201.99,71.42720388]
[1757269957749,7.96,202.04,201.99,71.42720388]
[1757269957954,5.52484096,202.05,201.99,63.66720388]
[1757269958253,13.48484096,202.04,201.97,120.0]
[1757269958452,5.52484096,202.03,201.97,120.0]
[1757269958650,7.96,202.02,201.97,127.76]
[1757269958855,7.96,202.02,201.98,7.79155133]
[1757269959055,7.96,202.02,201.99,7.76]
[1757269959456,5.52484096,202.03,201.99,7.76]
[1757269959657,7.96,202.02,201.99,7.76]
[1757269959862,5.52484096,202.03,201.99,7.76]
[1757269960163,5.52484096,202.04,201.99,7.76]
[1757269960859,7.96,202.03,201.99,7.76]
[1757269961062,5.52484096,202.04,201.99,7.76]
[1757269961460,5.52484096,202.04,201.98,0.03155133]
[1757269961461,7.96,202.03,201.98,0.03155133]
[1757269961662,13.48484096,202.03,201.98,0.03155133]
[1757269962366,7.96,202.03,201.98,0.03155133]
[1757269965362,13.48484096,202.03,201.98,0.03155133]
[1757269967266,7.96,202.03,201.98,0.03155133]
[1757269971561,13.48484096,202.03,201.98,0.03155133]
[1757269972461,7.96,202.03,201.98,0.03155133]
[1757269975868,13.48484096,202.03,201.98,0.03155133]
[1757269985274,5.52484096,202.02,201.98,0.03155133]
[1757269985568,8.13,202.01,201.98,0.03155133]
[1757269985771,5.52484096,202.02,201.98,0.03155133]
[1757269986074,13.65484096,202.02,201.98,0.03155133]
[1757269986276,8.13,202.02,201.98,0.03155133]
[1757269986471,13.65484096,202.02,201.98,0.03155133]
[1757269986771,13.65484096,202.03,201.99,7.75]
[1757269986976,8.13,202.02,201.98,0.03155133]
[1757269987374,8.13,202.02,201.99,7.75]
[1757269987675,5.52484096,202.03,201.99,7.75]
[1757269988278,8.13,202.02,201.99,7.75]
[1757269988471,5.52484096,202.03,201.99,7.75]
[1757269988974,5.52484096,202.03,201.98,0.03155133]
[1757269989174,5.52484096,202.03,201.98,7.78155133]
[1757269989670,13.65484096,202.0,201.98,0.03155133]
[1757269989875,13.65484096,201.99,201.98,0.03155133]
[1757269993472,8.13,201.99,201.98,0.03155133]
[1757269994482,16.41602648,201.99,201.98,0.03155133]
[1757270001282,8.13,201.99,201.98,0.03155133]
[1757270007579,11.21853249,201.99,201.98,0.03155133]
[1757270016298,10.1087923,201.99,201.98,0.03155133]
[1757270016601,8.13,201.99,201.98,0.03155133]
[1757270016801,18.39847763,201.99,201.98,0.03155133]
[1757270017000,10.1087923,201.99,201.98,0.03155133]
[1757270020901,10.1087923,201.99,201.91,7.64]
[1757270021102,5.52617489,201.93,201.88,7.64]
[1757270022209,5.55850136,201.93,201.88,7.64]
[1757270023104,5.55850136,201.93,201.87,1.9787923]
[1757270023304,13.55850136,201.93,201.88,7.64]
[1757270024909,5.55850136,201.93,201.88,7.64]
[1757270025902,5.52617489,201.92,201.88,7.64]
[1757270026102,5.52617489,201.92,201.89,1.9787923]
[1757270026303,5.52617489,201.92,201.9,7.64]
[1757270026606,5.55850136,201.93,201.9,7.64]
[1757270026805,5.55850136,201.93,201.89,1.9787923]
[1757270027409,5.52617489,201.92,201.89,1.9787923]
[1757270027606,5.52617489,201.92,201.9,7.64]
[1757270028108,5.52617489,201.92,201.89,1.9787923]
[1757270028907,5.52617489,201.92,201.9,7.64]
[1757270029104,5.52617489,201.92,201.88,1.9787923]
[1757270029908,5.52617489,201.92,201.89,7.64]
[1757270030099,5.52617489,201.92,201.88,1.9787923]
[1757270030304,5.52617489,201.92,201.89,7.64]
[1757270030504,5.52617489,201.92,201.9,7.64]
[1757270030707,5.52617489,201.92,201.88,1.9787923]
[1757270031410,5.52617489,201.92,201.89,7.64]
[1757270031708,5.52617489,201.92,201.88,1.9787923]
[1757270031906,5.52617489,201.92,201.89,7.64]
[1757270032107,5.52617489,201.92,201.88,1.9787923]
[1757270032307,5.52617489,201.92,201.89,7.64]
[1757270032505,5.52617489,201.92,201.88,1.9787923]
[1757270032905,5.52617489,201.92,201.89,7.64]
[1757270033106,5.52617489,201.92,201.88,1.9787923]
[1757270033407,5.52617489,201.91,201.88,1.9787923]
[1757270033707,5.52617489,201.91,201.89,7.64]
[1757270034210,5.52617489,201.91,201.88,1.9787923]
[1757270034709,5.52617489,201.91,201.89,7.64]
[1757270035208,5.52617489,201.91,201.88,1.9787923]
[1757270035799,5.52617489,201.91,201.89,7.64]
[1757270036003,5.52617489,201.92,201.89,7.64]
[1757270036201,8.0,201.91,201.89,7.64]
[1757270037411,13.52617489,201.91,201.89,7.64]
[1757270038309,8.0,201.91,201.89,7.64]
[1757270039308,8.0,201.91,201.88,1.9787923]
[1757270039515,8.0,201.91,201.89,7.64]
[1757270040314,8.0,201.91,201.88,1.9787923]
[1757270040513,8.0,201.91,201.89,7.64]
[1757270042314,13.52617489,201.91,201.89,7.64]
[1757270042516,8.0,201.91,201.89,7.64]
[1757270043010,13.52617489,201.91,201.89,7.64]
[1757270043815,8.0,201.91,201.89,7.64]
[1757270044215,13.52617489,201.91,201.89,7.64]
[1757270044415,8.0,201.91,201.89,7.64]
[1757270046918,8.0,201.91,201.88,1.9787923]
[1757270047420,8.0,201.91,201.89,8.01]
[1757270047716,8.0,201.91,201.88,1.9787923]
[1757270047917,8.0,201.91,201.89,8.01]
[1757270048318,8.0,201.91,201.88,1.9787923]
[1757270048514,8.0,201.91,201.89,8.01]
[1757270051615,8.0,201.91,201.88,1.9787923]
[1757270051815,7.45,201.91,201.88,1.9787923]
[1757270052220,7.45,201.91,201.88,9.9887923]
[1757270052918,5.52617489,201.92,201.88,1.9787923]
[1757270053112,5.55850136,201.93,201.91,8.01]
[1757270053317,5.55850136,201.93,201.9,1.9787923]
[1757270053520,7.45,201.92,201.9,1.9787923]
[1757270054319,5.55850136,201.93,201.9,1.9787923]
[1757270054518,5.55850136,201.93,201.88,9.9887923]
[1757270054717,7.45,201.92,201.88,9.9887923]
[1757270055016,5.55850136,201.93,201.88,9.9887923]
[1757270055218,7.45,201.92,201.88,1.9787923]
[1757270055420,7.45,201.92,201.89,8.01]
[1757270056422,5.55850136,201.93,201.89,8.01]
[1757270056724,7.45,201.92,201.89,8.01]
[1757270057426,7.45,201.92,201.88,1.9787923]
[1757270057625,5.55850136,201.93,201.88,1.9787923]
[1757270057815,7.45,201.92,201.88,9.9887923]
[1757270058925,5.55850136,201.93,201.88,9.9887923]
[1757270059126,7.45,201.92,201.88,9.9887923]
[1757270059328,5.55850136,201.93,201.88,9.9887923]
[1757270059528,7.45,201.92,201.84,8.01]
[1757270059722,7.45,201.92,201.87,1.9787923]
[1757270060327,13.00850136,201.93,201.88,8.01]
[1757270060520,5.55850136,201.93,201.87,1.9787923]
[1757270060926,5.52617489,201.92,201.88,8.01]
[1757270061227,5.52617489,201.92,201.87,1.9787923]
[1757270061228,12.97617489,201.92,201.87,1.9787923]
[1757270062728,12.97617489,201.92,201.88,8.01]
[1757270062928,12.97617489,201.92,201.87,1.9787923]
[1757270063128,12.97617489,201.92,201.88,8.01]
[1757270063630,12.97617489,201.92,201.87,1.9787923]
[1757270063829,12.97617489,201.92,201.88,8.01]
[1757270064229,7.45,201.91,201.88,8.01]
[1757270064627,5.52617489,201.92,201.87,1.9787923]
[1757270064928,7.45,201.91,201.88,8.01]
[1757270066834,7.45,201.91,201.87,1.9787923]
[1757270067033,7.45,201.91,201.88,8.01]
[1757270080347,5.52617489,201.91,201.88,8.01]
[1757270080546,7.68,201.9,201.88,8.01]
[1757270081645,5.52617489,201.91,201.86,8.02]
[1757270081847,5.52617489,201.91,201.85,3.09238853]
[1757270082443,13.20617489,201.91,201.86,8.02]
[1757270083245,5.52617489,201.91,201.85,3.09238853]
[1757270084143,13.20617489,201.91,201.86,8.02]
[1757270084446,5.52617489,201.91,201.85,3.09238853]
[1757270085147,5.52617489,201.91,201.86,8.02]
[1757270085148,13.20617489,201.91,201.86,8.02]
[1757270085342,5.52617489,201.91,201.85,3.09238853]
[1757270086146,13.20617489,201.91,201.86,8.02]
[1757270087040,5.52617489,201.91,201.85,3.09238853]
[1757270087234,0.03232647,201.93,201.85,3.09238853]
[1757270087235,5.52617489,201.92,201.85,3.09238853]
[1757270087837,13.20617489,201.92,201.86,8.02]
[1757270090349,5.52617489,201.91,201.85,3.09238853]
[1757270090647,13.20617489,201.91,201.86,8.02]
[1757270090947,5.52617489,201.91,201.85,3.09238853]
[1757270091343,13.20617489,201.91,201.86,8.02]
[1757270091540,5.52617489,201.91,201.85,3.09238853]
[1757270091847,13.20617489,201.91,201.86,8.02]
[1757270092050,5.52617489,201.91,201.85,3.09238853]
[1757270092245,5.52617489,201.92,201.85,3.09238853]
[1757270092446,7.68,201.91,201.86,8.02]
[1757270092752,5.52617489,201.92,201.85,3.09238853]
[1757270093053,5.52617489,201.92,201.86,4.4581]
[1757270094249,7.68,201.91,201.86,12.4781]
[1757270094755,5.52617489,201.92,201.86,4.4581]
[1757270095255,5.52617489,201.92,201.85,3.09238853]
[1757270095749,7.68,201.91,201.86,8.02]
[1757270095956,5.52617489,201.92,201.85,3.09238853]
[1757270096150,0.03232647,201.93,201.86,8.02]
[1757270096151,13.20617489,201.91,201.86,8.02]
[1757270096351,7.68,201.89,201.86,8.02]
[1757270096557,7.68,201.89,201.85,3.09238853]
[1757270096757,7.68,201.89,201.86,8.02]
[1757270097559,7.68,201.89,201.85,3.09238853]
[1757270097756,7.68,201.89,201.86,8.02]
[1757270097951,7.68,201.89,201.85,3.09238853]
[1757270098158,7.68,201.89,201.86,8.02]
[1757270098454,7.68,201.89,201.85,3.09238853]
[1757270098855,7.68,201.89,201.86,8.02]
[1757270099261,7.68,201.89,201.85,3.09238853]
[1757270099457,7.68,201.89,201.86,8.02]
[1757270099652,7.68,201.89,201.85,3.09238853]
[1757270100359,7.68,201.89,201.86,8.02]
[1757270101259,5.52617489,201.9,201.86,8.02]
[1757270101563,7.68,201.89,201.86,8.02]
[1757270101765,7.68,201.89,201.85,3.09238853]
[1757270101966,5.52617489,201.9,201.85,11.11238853]
[1757270102159,7.68,201.89,201.85,11.11238853]
[1757270102562,5.52617489,201.9,201.85,11.11238853]
[1757270102964,7.68,201.89,201.85,11.11238853]
[1757270103162,5.52617489,201.9,201.85,11.11238853]
[1757270104061,7.68,201.89,201.85,11.11238853]
[1757270104664,5.52617489,201.9,201.85,11.11238853]
[1757270105264,7.43,201.89,201.85,11.11238853]
[1757270105572,5.52617489,201.9,201.85,11.11238853]
[1757270105766,7.43,201.89,201.85,11.11238853]
[1757270106364,5.52617489,201.9,201.85,11.11238853]
[1757270106570,7.43,201.89,201.85,11.11238853]
[1757270107169,5.52617489,201.9,201.85,11.11238853]
[1757270107966,7.43,201.89,201.82,8.21]
[1757270108167,12.95617489,201.89,201.83,3.09238853]
[1757270108667,7.43,201.87,201.84,8.21]
[1757270109671,0.03617519,201.88,201.84,8.21]
[1757270109871,7.43,201.87,201.84,8.21]
[1757270111677,7.43,201.87,201.83,3.09238853]
[1757270112577,7.43,201.87,201.84,8.21]
[1757270113477,7.43,201.87,201.83,11.30238853]
[1757270113775,0.03617519,201.88,201.83,11.30238853]
[1757270114073,0.03617519,201.88,201.8,9.07231462]
[1757270114275,5.52617489,201.86,201.77,8.21]
[1757270114469,7.43,201.85,201.78,3.09238853]
[1757270114673,12.95617489,201.85,201.78,3.09238853]
[1757270115080,7.43,201.83,201.78,3.09238853]
[1757270115277,7.43,201.83,201.78,11.30238853]
[1757270115582,0.03137094,201.84,201.78,8.21]
[1757270115880,7.43,201.83,201.77,11.30238853]
[1757270116174,7.43,201.83,201.75,52.6969419]
[1757270116374,7.43,201.83,201.72,8.21]
[1757270116578,12.95617489,201.81,201.73,3.09238853]
[1757270117079,7.43,201.78,201.73,3.09238853]
[1757270117375,0.03290265,201.79,201.73,3.09238853]
[1757270117681,7.43,201.78,201.73,11.30238853]
[1757270117878,7.43,201.78,201.73,8.21]
[1757270118076,0.03290265,201.79,201.73,8.21]
[1757270118379,7.43,201.78,201.73,11.30238853]
[1757270118580,0.03290265,201.79,201.73,3.09238853]
[1757270118777,7.43,201.78,201.73,11.30238853]
[1757270119180,7.43,201.78,201.74,8.21]
[1757270120082,0.03290265,201.79,201.74,8.21]
[1757270121582,7.43,201.78,201.74,8.21]
[1757270121787,0.03290265,201.79,201.74,8.21]
[1757270121988,7.43,201.78,201.74,8.21]
[1757270122188,7.43,201.78,201.72,3.09238853]
[1757270122483,0.03290265,201.79,201.72,3.09238853]
[1757270122988,0.03290265,201.79,201.75,3.09238853]
[1757270123688,0.03290265,201.79,201.76,8.21]
[1757270124086,0.03290265,201.79,201.75,3.09238853]
[1757270124286,0.03290265,201.79,201.76,8.21]
[1757270124489,0.03290265,201.79,201.75,3.09238853]
[1757270124987,0.03290265,201.79,201.76,8.21]
[1757270125584,0.03290265,201.79,201.75,3.09238853]
[1757270125783,0.03290265,201.79,201.76,8.21]
[1757270126087,0.03290265,201.79,201.75,3.09238853]
[1757270126488,0.03290265,201.79,201.76,8.21]
[1757270126788,0.03290265,201.79,201.75,3.09238853]
[1757270126985,0.03290265,201.79,201.76,8.21]
[1757270127788,0.03290265,201.79,201.75,3.09238853]
[1757270128088,0.03290265,201.79,201.76,8.21]
[1757270128589,0.03290265,201.79,201.75,3.09238853]
[1757270128790,0.03290265,201.79,201.76,8.21]
[1757270129190,0.03290265,201.79,201.75,3.09238853]
[1757270129392,0.03290265,201.79,201.76,8.21]
[1757270129593,0.03290265,201.79,201.75,3.09238853]
[1757270130590,0.03290265,201.79,201.76,8.21]
[1757270130986,0.03290265,201.79,201.75,3.09238853]
[1757270131392,7.46290265,201.79,201.75,3.09238853]
[1757270131785,7.46290265,201.79,201.76,8.21]
[1757270132292,7.46290265,201.79,201.75,3.09238853]
[1757270132894,7.46290265,201.79,201.76,8.21]
[1757270133098,7.46290265,201.79,201.75,3.09238853]
[1757270133295,7.46290265,201.79,201.76,8.21]
[1757270133495,7.46290265,201.79,201.75,3.09238853]
[1757270133895,7.46290265,201.79,201.76,8.21]
[1757270134095,7.46290265,201.79,201.75,3.09238853]
[1757270134300,7.46290265,201.79,201.76,8.21]
[1757270134995,7.46290265,201.79,201.76,8.1]
[1757270135195,7.46290265,201.79,201.75,3.09238853]
[1757270135596,7.46290265,201.79,201.76,8.1]
[1757270135798,0.03290265,201.79,201.76,8.1]
[1757270135995,4.46572344,201.78,201.76,8.1]
[1757270136197,4.46572344,201.77,201.76,8.1]
[1757270136494,4.46572344,201.78,201.75,3.09238853]
[1757270136895,0.03290265,201.79,201.76,8.1]
[1757270137095,0.03290265,201.79,201.75,3.09238853]
[1757270137798,0.03290265,201.79,201.76,8.1]
[1757270137995,0.03290265,201.79,201.75,3.09238853]
[1757270138410,0.03290265,201.79,201.78,10.08108955]
[1757270139694,0.03290265,201.79,201.67,0.86282774]
[1757270139898,7.83290265,201.79,201.77,1.98108955]
[1757270140398,7.8,201.78,201.77,1.98108955]
[1757270144400,0.03290265,201.79,201.77,10.08108955]
[1757270144605,7.83290265,201.79,201.77,10.08108955]
[1757270144801,0.03290265,201.79,201.78,8.1]
[1757270146709,0.03290265,201.79,201.78,10.08108955]
[1757270157313,0.03290265,201.79,201.78,8.1]
[1757270157613,0.03290265,201.79,201.78,10.08108955]
[1757270160209,7.83290265,201.79,201.75,8.1]
[1757270160410,13.35907754,201.79,201.77,10.08108955]
[1757270164112,7.8,201.78,201.77,1.98108955]
[1757270170219,13.32617489,201.78,201.77,1.98108955]
[1757270173419,7.8,201.78,201.77,1.98108955]
[1757270175121,5.55907754,201.79,201.74,8.1]
[1757270175322,7.97,201.78,201.74,8.1]
[1757270175520,7.97,201.77,201.76,1.98108955]
[1757270178623,13.49617489,201.77,201.76,1.98108955]
[1757270179023,7.97,201.77,201.76,1.98108955]
[1757270181822,5.52617489,201.78,201.77,7.77]
[1757270182431,13.49617489,201.78,201.77,7.77]
[1757270182826,13.49617489,201.78,201.76,9.75108955]
[1757270184135,7.97,201.77,201.76,1.98108955]
[1757270197944,13.49617489,201.77,201.76,1.98108955]
[1757270198341,13.49617489,201.77,201.73,3.09637714]
[1757270198736,5.52617489,201.77,201.73,10.90637714]
[1757270198941,7.73,201.76,201.73,10.90637714]
[1757270202749,7.73,201.76,201.74,7.81]
[1757270203651,13.25617489,201.78,201.74,7.81]
[1757270203846,5.52617489,201.78,201.74,7.81]
[1757270204053,5.55907754,201.79,201.76,3.09637714]
[1757270204255,5.55907754,201.79,201.77,7.81]
[1757270204852,13.28907754,201.79,201.77,7.81]
[1757270205554,5.55907754,201.79,201.77,7.81]
[1757270205755,7.73,201.78,201.76,10.90637714]
[1757270208954,7.73,201.78,201.72,7.81]
[1757270209156,5.52617489,201.78,201.75,3.09637714]
[1757270209351,7.73,201.77,201.75,3.09637714]
[1757270209551,7.73,201.77,201.74,3.09637714]
[1757270209856,7.73,201.76,201.74,3.09637714]
[1757270210958,7.73,201.76,201.72,7.81]
[1757270211158,7.73,201.76,201.74,10.90637714]
[1757270215568,7.73,201.77,201.74,3.09637714]
[1757270215768,5.52617489,201.78,201.74,3.09637714]
[1757270215963,7.73,201.77,201.74,3.09637714]
[1757270216364,13.25617489,201.77,201.71,10.90637714]
[1757270216565,7.73,201.75,201.72,7.81]
[1757270216868,5.52617489,201.75,201.72,7.81]
[1757270217166,7.73,201.74,201.72,7.81]
[1757270219073,7.73,201.74,201.7,3.09637714]
[1757270219074,13.25617489,201.74,201.7,3.09637714]
[1757270219274,7.73,201.72,201.7,10.90637714]
[1757270219475,13.25617489,201.73,201.71,7.81]
[1757270219774,7.76562124,201.73,201.71,7.81]
[1757270220866,0.03562124,201.73,201.71,7.81]
[1757270222673,0.03562124,201.73,201.7,3.09637714]
[1757270223068,0.03562124,201.73,201.71,7.81]
[1757270223574,0.03562124,201.73,201.7,3.09637714]
[1757270223778,0.03562124,201.73,201.71,7.81]
[1757270224173,0.03562124,201.73,201.7,3.09637714]
[1757270224375,0.03562124,201.73,201.71,7.81]
[1757270225079,0.03562124,201.73,201.7,3.09637714]
[1757270225281,0.03562124,201.73,201.71,7.56]
[1757270225976,0.03562124,201.73,201.7,3.09637714]
[1757270226170,0.03562124,201.73,201.71,7.56]
[1757270227379,0.03562124,201.73,201.7,3.09637714]
[1757270227684,0.03562124,201.73,201.69,124.4218]
[1757270227883,0.03562124,201.73,201.72,10.65637714]
[1757270231287,5.52617489,201.79,201.73,7.56]
[1757270231482,5.52617489,201.79,201.75,3.09637714]
[1757270231889,13.06617489,201.79,201.76,7.56]
[1757270233186,7.54,201.79,201.76,7.56]
[1757270235884,5.52617489,201.8,201.76,7.56]
[1757270236091,13.06617489,201.79,201.75,0.03335873]
[1757270236388,7.54,201.77,201.75,7.56]
[1757270236684,7.54,201.77,201.75,7.59229248]
[1757270240484,7.54,201.78,201.76,7.56]
[1757270240987,7.54,201.79,201.78,7.56]
[1757270241492,7.54,201.79,201.77,10.65637714]
[1757270244593,7.54,201.79,201.77,3.09637714]
[1757270244794,7.54,201.79,201.78,7.56]
[1757270245599,5.52617489,201.8,201.77,3.09637714]
[1757270245799,7.54,201.79,201.77,3.09637714]
[1757270245994,5.52617489,201.8,201.77,3.09637714]
[1757270246195,7.54,201.79,201.77,3.09637714]
[1757270246700,7.54,201.79,201.77,10.65637714]
[1757270246902,5.52617489,201.81,201.78,7.56]
[1757270247102,5.52617489,201.82,201.8,3.09637714]
[1757270247305,7.54,201.81,201.8,3.09637714]
[1757270255304,8.01,201.81,201.78,0.03487167]
[1757270255511,13.53617489,201.81,201.78,0.03487167]
[1757270255909,8.01,201.79,201.78,0.03487167]
[1757270260910,13.53617489,201.79,201.78,0.03487167]
[1757270261111,8.01,201.79,201.78,0.03487167]
[1757270271621,8.01,201.79,201.78,2.01622831]
[1757270272323,13.53617489,201.79,201.78,2.01622831]
[1757270289340,5.52617489,201.79,201.78,9.53622831]
[1757270289539,5.52617489,201.81,201.78,9.53622831]
[1757270289735,13.06617489,201.81,201.8,1.98135664]
[1757270289940,7.54,201.81,201.8,1.98135664]
[1757270294644,7.54,201.82,201.8,1.98135664]
[1757270294843,7.54,201.82,201.81,1.98135664]
[1757270301851,13.06617489,201.82,201.81,1.98135664]
[1757270302051,7.54,201.82,201.81,1.98135664]
[1757270302553,7.54,201.82,201.78,0.03487167]
[1757270302554,13.06617489,201.82,201.78,0.03487167]
[1757270302753,5.52617489,201.81,201.8,1.98135664]
[1757270302948,13.06617489,201.81,201.8,1.98135664]
[1757270307352,7.54,201.81,201.8,1.98135664]
[1757270311855,7.54,201.81,201.78,0.03487167]
[1757270312055,7.54,201.79,201.78,0.03487167]
[1757270312254,13.06617489,201.79,201.78,2.01622831]
[1757270312949,7.54,201.79,201.78,2.01622831]
[1757270314445,7.54,201.79,201.78,0.03487167]
[1757270314647,7.54,201.79,201.78,2.01622831]
[1757270320362,7.54,201.79,201.78,0.03487167]
[1757270320565,7.54,201.79,201.78,2.01622831]
[1757270322363,7.54,201.79,201.78,0.03487167]
[1757270322763,13.06617489,201.79,201.78,0.03487167]
[1757270324567,7.54,201.79,201.78,0.03487167]
[1757270330066,13.07899928,201.79,201.78,0.03487167]
[1757270331169,7.54,201.79,201.78,0.03487167]
[1757270340578,15.82926233,201.79,201.78,0.03487167]
[1757270341277,7.54,201.79,201.78,0.03487167]
[1757270342979,15.82926233,201.79,201.78,0.03487167]
[1757270343180,15.82926233,201.79,201.72,3.09548441]
[1757270343373,5.53628036,201.76,201.72,3.09548441]
[1757270343774,5.53628036,201.76,201.72,11.24548441]
[1757270343974,7.53,201.75,201.72,11.24548441]
[1757270351484,7.53,201.75,201.72,3.09548441]
[1757270351680,7.53,201.75,201.73,8.04]
[1757270352183,8.08,201.75,201.73,8.04]
[1757270355980,8.08,201.75,201.72,3.09548441]
[1757270355981,5.57357878,201.76,201.72,3.09548441]
[1757270356181,8.08,201.75,201.72,3.09548441]
[1757270356384,8.08,201.75,201.72,11.13548441]
[1757270356778,5.57357878,201.76,201.72,11.13548441]
[1757270356977,8.08,201.75,201.72,11.13548441]
[1757270357177,8.08,201.75,201.73,3.09548441]
[1757270357377,5.57357878,201.76,201.73,3.09548441]
[1757270357783,8.08,201.75,201.73,3.09548441]
[1757270357975,5.57357878,201.76,201.73,3.09548441]
[1757270358582,8.08,201.75,201.73,3.09548441]
[1757270358987,5.57357878,201.76,201.73,3.09548441]
[1757270359286,8.08,201.75,201.73,3.09548441]
[1757270362586,8.08,201.75,201.73,11.13548441]
[1757270362786,13.65357878,201.76,201.73,11.13548441]
[1757270363289,5.57357878,201.76,201.73,11.13548441]
[1757270363489,8.08,201.75,201.73,11.13548441]
[1757270365689,13.61628036,201.75,201.73,11.13548441]
[1757270366190,8.08,201.74,201.73,11.13548441]
[1757270370494,5.53628036,201.75,201.74,8.04]
[1757270371295,13.61628036,201.75,201.74,8.04]
[1757270372398,13.61628036,201.75,201.73,3.09548441]
[1757270373000,13.61628036,201.75,201.73,11.13548441]
[1757270375001,13.61628036,201.75,201.74,8.25]
[1757270375198,5.57357878,201.76,201.74,8.25]
[1757270375602,13.17357878,201.76,201.74,8.25]
[1757270376102,5.53628036,201.75,201.74,8.25]
[1757270376604,13.13628036,201.75,201.74,8.25]
[1757270376803,13.13628036,201.75,201.73,11.34548441]
[1757270377502,13.13628036,201.75,201.73,8.25]
[1757270377703,13.13628036,201.75,201.73,11.34548441]
[1757270379805,13.13628036,201.75,201.74,8.25]
[1757270380006,13.13628036,201.75,201.73,11.34548441]